bitfinex/quotes_BTCUSD_20240810
["timestamp","ask_amount","ask_price","bid_price","bid_amount"]
[1723286982400,0.00177158,60914.0,60913.0,0.81349196]
[1723286982762,0.00177158,60914.0,60913.0,0.67716887]
[1723286984763,0.00177158,60914.0,60913.0,0.81349233]
[1723286988976,0.00177158,60914.0,60913.0,0.67716887]
[1723286989159,0.00177158,60914.0,60913.0,0.81349277]
[1723286991076,0.00177158,60914.0,60913.0,0.81349255]
[1723286991455,0.00177158,60914.0,60913.0,0.25523563]
[1723286991651,0.00177158,60914.0,60913.0,0.33353563]
[1723286992678,0.00177158,60914.0,60913.0,0.33353723]
[1723286993173,0.00177158,60914.0,60913.0,0.33353743]
[1723286996764,0.00177158,60914.0,60913.0,0.49770543]
[1723286997325,0.00177158,60914.0,60913.0,0.75125122]
[1723286998308,0.00177158,60914.0,60913.0,0.91541922]
[1723286998509,0.00177158,60914.0,60913.0,0.85789376]
[1723287000579,0.00177158,60914.0,60913.0,1.02829986]
[1723287000785,0.00177158,60914.0,60913.0,0.85789376]
[1723287001179,0.00177158,60914.0,60913.0,0.52554795]
[1723287001461,0.00177158,60914.0,60913.0,0.85817306]
[1723287001634,0.00177158,60914.0,60913.0,1.1106799]
[1723287001842,0.00177158,60914.0,60913.0,0.77805442]
[1723287001993,0.00177158,60914.0,60913.0,1.1106766]
[1723287004311,0.00177158,60914.0,60913.0,1.0285766]
[1723287005440,0.00177158,60914.0,60913.0,0.85810478]
[1723287005659,0.00177158,60914.0,60913.0,1.02850985]
[1723287008611,0.00177158,60914.0,60913.0,1.02852021]
[1723287009957,0.00177158,60914.0,60913.0,0.85811341]
[1723287010159,0.00177158,60914.0,60913.0,1.02852062]
[1723287011472,0.00177158,60914.0,60913.0,0.8581347]
[1723287011664,0.00177158,60914.0,60913.0,1.02854189]
[1723287014315,0.00177158,60914.0,60913.0,0.93701301]
[1723287014516,0.00177158,60914.0,60913.0,1.10741807]
[1723287014731,0.00177158,60914.0,60913.0,0.65369993]
[1723287014917,0.00177158,60914.0,60913.0,1.15667005]
[1723287015536,0.00177158,60914.0,60913.0,1.10741807]
[1723287017747,0.00177158,60914.0,60913.0,1.2495113]
[1723287018159,0.00177158,60914.0,60913.0,1.1755785]
[1723287018381,0.00177158,60914.0,60913.0,0.84878582]
[1723287018664,0.00177158,60914.0,60913.0,1.17557773]
[1723287019962,0.00177158,60914.0,60913.0,1.24950799]
[1723287020179,0.00177158,60914.0,60913.0,1.17557773]
[1723287020561,0.00177158,60914.0,60913.0,1.24950652]
[1723287020789,0.00177158,60914.0,60913.0,1.17557773]
[1723287021246,0.00177158,60914.0,60913.0,1.1706059]
[1723287022414,0.00177158,60914.0,60913.0,1.10244548]
[1723287022897,0.00177158,60914.0,60913.0,1.02851497]
[1723287023356,0.00177158,60914.0,60913.0,1.10244314]
[1723287023554,0.00177158,60914.0,60913.0,1.17060368]
[1723287024041,0.00177158,60914.0,60913.0,1.02851497]
[1723287024497,0.00177158,60914.0,60913.0,1.10244149]
[1723287026395,0.00177158,60914.0,60913.0,1.02851497]
[1723287026642,0.00177158,60914.0,60913.0,0.36939225]
[1723287026643,0.14497158,60914.0,60913.0,0.36939225]
[1723287026881,0.7191985,60914.0,60913.0,0.1731488]
[1723287027157,1.00634777,60914.0,60913.0,0.03261661]
[1723287027371,0.410432,60911.0,60910.0,0.001]
[1723287027539,1.05176638,60911.0,60910.0,0.001]
[1723287027786,1.14176638,60911.0,60910.0,0.001]
[1723287027981,1.19056569,60911.0,60910.0,0.001]
[1723287028111,1.14176638,60911.0,60910.0,0.001]
[1723287028457,0.4105,60901.0,60891.0,0.0009141]
[1723287028670,0.71751492,60901.0,60891.0,0.0009141]
[1723287028868,0.88171492,60901.0,60891.0,0.0009141]
[1723287029771,0.88771492,60901.0,60900.0,0.0019141]
[1723287030761,0.88171492,60901.0,60900.0,0.0009141]
[1723287031306,0.71751492,60901.0,60900.0,0.0009141]
[1723287031876,0.73151492,60901.0,60900.0,0.0019141]
[1723287032811,0.74551492,60901.0,60900.0,0.0029141]
[1723287033267,0.73151492,60901.0,60900.0,0.0019141]
[1723287033657,0.41711492,60901.0,60900.0,0.0019141]
[1723287033930,0.4175,60901.0,60900.0,0.0019141]
[1723287034102,0.2533,60901.0,60900.0,0.0019141]
[1723287034356,0.2533,60901.0,60900.0,0.02043702]
[1723287034563,0.2393,60901.0,60900.0,0.02043702]
[1723287034686,0.3895,60901.0,60900.0,0.01943702]
[1723287034889,0.1572,60901.0,60900.0,0.02043702]
[1723287035091,0.2393,60901.0,60900.0,0.02043702]
[1723287035699,0.2533,60901.0,60900.0,0.02143702]
[1723287036301,0.2393,60901.0,60900.0,0.02043702]
[1723287036527,0.4035,60901.0,60900.0,0.02043702]
[1723287036685,0.4155,60901.0,60900.0,0.02143702]
[1723287036890,0.5797,60901.0,60900.0,0.0029141]
[1723287039701,0.74351492,60901.0,60900.0,0.0029141]
[1723287045660,0.98601492,60901.0,60900.0,0.0029141]
[1723287049924,0.90771492,60901.0,60900.0,0.0029141]
[1723287050297,0.90751732,60901.0,60900.0,0.0029141]
[1723287065464,0.90834832,60901.0,60900.0,0.0029141]
[1723287072534,1.03076094,60901.0,60900.0,0.0029141]
[1723287074910,1.0311549,60901.0,60900.0,0.0029141]
[1723287075109,0.8068549,60901.0,60900.0,0.0029141]
[1723287075344,0.191031,60901.0,60900.0,0.28570376]
[1723287075511,0.108931,60901.0,60900.0,0.28570376]
[1723287075731,0.108931,60901.0,60900.0,0.30424193]
[1723287076389,0.273131,60901.0,60900.0,0.22194193]
[1723287078051,0.273131,60901.0,60900.0,0.22193448]
[1723287078403,0.108931,60901.0,60900.0,0.22193448]
[1723287079038,0.273131,60901.0,60900.0,0.22193448]
[1723287079258,0.437331,60901.0,60900.0,0.02145227]
[1723287079656,0.261131,60901.0,60900.0,0.0019141]
[1723287079891,0.261131,60901.0,60900.0,0.0204475]
[1723287080591,0.247131,60901.0,60900.0,0.0194475]
[1723287080797,0.261131,60901.0,60900.0,0.0204475]
[1723287080972,0.272131,60901.0,60900.0,0.0214475]
[1723287081380,0.272131,60901.0,60900.0,0.0855475]
[1723287082180,0.261131,60901.0,60900.0,0.0835475]
[1723287082358,0.247131,60901.0,60900.0,0.0835475]
[1723287082695,0.270131,60901.0,60900.0,0.0855475]
[1723287085569,0.270131,60901.0,60900.0,0.0214475]
[1723287090238,0.260131,60901.0,60900.0,0.0204475]
[1723287090657,0.268131,60901.0,60900.0,0.0214475]
[1723287090899,0.255131,60901.0,60900.0,0.0204475]
[1723287091258,0.267131,60901.0,60900.0,0.0214475]
[1723287092239,0.267131,60901.0,60900.0,0.79462995]
[1723287092240,0.020831,60901.0,60900.0,0.79462995]
[1723287092448,0.020831,60901.0,60900.0,0.80448165]
[1723287092567,0.020831,60901.0,60900.0,0.6681062]
[1723287092764,0.020831,60901.0,60900.0,0.80446389]
[1723287093410,0.012831,60901.0,60900.0,0.80346389]
[1723287093585,0.012831,60901.0,60900.0,0.80446389]
[1723287093788,0.020831,60901.0,60900.0,0.80446389]
[1723287094013,0.020831,60901.0,60900.0,0.80346389]
[1723287094014,0.008831,60901.0,60900.0,0.80346389]
[1723287094263,0.000831,60901.0,60900.0,0.80246389]
[1723287094435,0.012831,60901.0,60900.0,0.80946389]
[1723287094639,0.001831,60901.0,60900.0,0.80846389]
[1723287094842,0.001831,60901.0,60900.0,0.6751062]
[1723287095060,0.001831,60901.0,60900.0,0.81146301]
[1723287095249,0.001831,60901.0,60900.0,0.80246301]
[1723287095250,0.000831,60901.0,60900.0,0.80246301]
[1723287095455,0.001831,60901.0,60900.0,0.80846301]
[1723287095693,0.001831,60901.0,60900.0,0.79919552]
[1723287095824,0.001831,60901.0,60900.0,0.79319552]
[1723287095825,0.000831,60901.0,60900.0,0.79319552]
[1723287096434,0.000831,60901.0,60900.0,0.95701044]
[1723287096793,0.000831,60901.0,60900.0,1.19676653]
[1723287097005,0.000831,60901.0,60900.0,1.63365541]
[1723287097140,0.000831,60901.0,60900.0,1.92329677]
[1723287097141,0.001831,60901.0,60900.0,1.92329677]
[1723287097343,0.001831,60901.0,60900.0,1.69092289]
[1723287097543,0.001831,60901.0,60900.0,1.75909342]
[1723287097744,0.001831,60901.0,60900.0,1.71282594]
[1723287097949,0.001831,60901.0,60900.0,1.70982594]
[1723287098174,0.001831,60901.0,60900.0,1.73698761]
[1723287098381,0.002831,60901.0,60900.0,1.67481708]
[1723287098656,0.002831,60901.0,60900.0,1.62565541]
[1723287099399,0.002831,60901.0,60900.0,1.62538115]
[1723287099603,0.002831,60901.0,60900.0,1.43861884]
[1723287099982,0.002831,60901.0,60900.0,1.42861884]
[1723287100717,0.002831,60901.0,60900.0,1.42861922]
[1723287101103,0.002831,60901.0,60900.0,1.25819539]
[1723287101929,0.002831,60901.0,60900.0,1.26819539]
[1723287102546,0.002831,60901.0,60900.0,1.28819539]
[1723287102742,0.002831,60901.0,60900.0,1.29019539]
[1723287102967,0.002831,60901.0,60900.0,1.15385663]
[1723287103167,0.002831,60901.0,60900.0,1.29019833]
[1723287104999,0.002831,60901.0,60900.0,1.15385663]
[1723287105194,0.002831,60901.0,60900.0,1.29019758]
[1723287105964,0.002831,60901.0,60900.0,1.15385663]
[1723287106455,0.002831,60901.0,60900.0,1.29019658]
[1723287107977,0.002831,60901.0,60900.0,1.29019643]
[1723287110055,0.002831,60901.0,60900.0,1.26819643]
[1723287110255,0.002831,60901.0,60900.0,1.25819643]
[1723287111199,0.002831,60901.0,60900.0,1.25819918]
[1723287111510,0.002831,60901.0,60900.0,1.12185663]
[1723287111677,0.002831,60901.0,60900.0,1.26819918]
[1723287112229,0.002831,60901.0,60900.0,1.26819888]
[1723287112652,0.002831,60901.0,60900.0,1.13185663]
[1723287112851,0.002831,60901.0,60900.0,1.26819888]
[1723287115171,0.002831,60901.0,60900.0,1.13385663]
[1723287115368,0.002831,60901.0,60900.0,1.27019888]
[1723287115814,0.002831,60901.0,60900.0,1.29019888]
[1723287116112,0.002831,60901.0,60900.0,1.71581874]
[1723287116548,0.002831,60901.0,60900.0,1.87999301]
[1723287116900,0.001831,60901.0,60900.0,1.70159491]
[1723287117105,0.000831,60901.0,60900.0,1.96871178]
[1723287117306,0.001831,60901.0,60900.0,1.98271178]
[1723287117511,0.002831,60901.0,60900.0,1.99363473]
[1723287119192,0.002831,60901.0,60900.0,1.99360603]
[1723287119655,0.002831,60901.0,60900.0,1.9936069]
[1723287119866,0.000832,60910.0,60900.0,1.9936069]
[1723287119867,0.000832,60910.0,60909.0,0.753026]
[1723287120062,0.000832,60910.0,60909.0,1.67996943]
[1723287120266,0.000832,60910.0,60909.0,1.68917737]
[1723287120424,0.000832,60910.0,60909.0,1.85335637]
[1723287121881,0.000832,60910.0,60909.0,1.86770454]
[1723287122239,0.000832,60910.0,60909.0,1.86770358]
[1723287122580,0.000832,60910.0,60909.0,1.86970358]
[1723287122761,0.000832,60910.0,60909.0,1.86770358]
[1723287123165,0.000832,60910.0,60909.0,1.88170358]
[1723287123373,0.000832,60910.0,60909.0,1.88176196]
[1723287124278,0.000832,60910.0,60909.0,1.81360331]
[1723287124488,0.000832,60910.0,60909.0,1.88176197]
[1723287125784,0.000832,60910.0,60909.0,1.88176198]
[1723287125958,0.000832,60910.0,60909.0,1.98447654]
[1723287126538,0.000832,60910.0,60909.0,1.99433919]
[1723287127147,0.000832,60910.0,60909.0,1.92598327]
[1723287127479,0.000832,60910.0,60909.0,1.99413365]
[1723287128850,0.000832,60910.0,60909.0,1.99417793]
[1723287129049,0.000832,60910.0,60909.0,2.87835693]
[1723287129249,0.000832,60910.0,60909.0,2.15835693]
[1723287129653,0.000832,60910.0,60909.0,1.98796622]
[1723287129872,0.000832,60910.0,60909.0,2.1583436]
[1723287130073,0.000832,60910.0,60909.0,2.0800436]
[1723287130278,0.000832,60910.0,60909.0,1.99399582]
[1723287130904,0.000832,60910.0,60909.0,1.99400019]
[1723287131055,0.000832,60910.0,60909.0,1.99400321]
[1723287131880,0.000832,60910.0,60909.0,1.99374855]
[1723287133391,0.000832,60910.0,60909.0,2.09197939]
[1723287133600,0.000832,60910.0,60909.0,2.09200299]
[1723287134002,0.000832,60910.0,60909.0,1.53033591]
[1723287134268,0.000832,60910.0,60909.0,2.09200297]
[1723287134440,0.000832,60910.0,60909.0,1.53033591]
[1723287134642,0.000832,60910.0,60909.0,1.8370261]
[1723287134819,0.000832,60910.0,60909.0,2.0920266]
[1723287135005,0.000832,60910.0,60909.0,2.09202661]
[1723287135234,0.000832,60910.0,60909.0,1.43210507]
[1723287135429,0.000832,60910.0,60909.0,2.09202549]
[1723287135663,0.000832,60910.0,60909.0,1.99379465]
[1723287135879,0.000832,60910.0,60909.0,2.1165832]
[1723287136191,0.000832,60910.0,60909.0,2.11664391]
[1723287136394,0.000832,60910.0,60909.0,2.01200217]
[1723287136571,0.000832,60910.0,60909.0,2.18238143]
[1723287137356,0.000832,60910.0,60909.0,2.05961058]
[1723287137540,0.000832,60910.0,60909.0,1.68876535]
[1723287137741,0.000832,60910.0,60909.0,2.1823619]
[1723287138196,0.000832,60910.0,60909.0,2.18236003]
[1723287138400,0.000832,60910.0,60909.0,2.05958918]
[1723287138550,0.000832,60910.0,60909.0,2.18236003]
[1723287138749,0.00063437,60910.0,60909.0,2.18236003]
[1723287140552,0.00063437,60910.0,60909.0,2.04558918]
[1723287140754,0.00063437,60910.0,60909.0,2.04458918]
[1723287141107,0.00063437,60910.0,60909.0,2.03158918]
[1723287141310,0.00063437,60910.0,60909.0,2.04558918]
[1723287141978,0.00063437,60910.0,60909.0,2.04558888]
[1723287142263,0.00063437,60910.0,60909.0,2.059605]
[1723287142612,0.00063437,60910.0,60909.0,2.045605]
[1723287142810,0.00063437,60910.0,60909.0,2.16837585]
[1723287143010,0.00063437,60910.0,60909.0,2.059605]
[1723287143251,0.00063437,60910.0,60909.0,2.15779773]
[1723287143485,0.00063437,60910.0,60909.0,2.07699773]
[1723287144639,0.00063437,60910.0,60909.0,1.97669773]
[1723287144851,0.14213437,60910.0,60909.0,1.52557344]
[1723287145223,0.14213437,60910.0,60909.0,1.39757344]
[1723287145422,0.14213437,60910.0,60909.0,1.34306074]
[1723287145621,0.14213437,60910.0,60909.0,1.42521834]
[1723287145885,0.14213437,60910.0,60909.0,1.41116529]
[1723287146025,0.14213437,60910.0,60909.0,1.43416529]
[1723287146376,0.14213437,60910.0,60909.0,0.85881151]
[1723287146607,0.14213437,60910.0,60909.0,1.37377293]
[1723287146736,0.14213437,60910.0,60909.0,1.53416584]
[1723287146938,0.14213437,60910.0,60909.0,1.52016584]
[1723287147367,0.14213437,60910.0,60909.0,1.53418695]
[1723287147742,0.14213437,60910.0,60909.0,1.62290256]
[1723287147883,0.14213437,60910.0,60909.0,1.63690256]
[1723287148287,0.14213437,60910.0,60909.0,1.65090256]
[1723287149280,0.14213437,60910.0,60909.0,1.65089418]
[1723287150067,0.14213437,60910.0,60909.0,1.65088856]
[1723287150662,0.14213437,60910.0,60909.0,1.1386445]
[1723287150865,0.14213437,60910.0,60909.0,1.69953372]
[1723287151284,0.07783437,60910.0,60909.0,1.69953372]
[1723287152203,0.07783437,60910.0,60909.0,1.52921583]
[1723287152477,0.07783437,60910.0,60909.0,1.66049138]
[1723287152681,0.07783437,60910.0,60909.0,1.65049138]
[1723287152860,0.00063437,60910.0,60909.0,1.65049138]
[1723287153259,0.00063437,60910.0,60909.0,1.69963128]
[1723287153967,0.00063437,60910.0,60909.0,1.65049138]
[1723287154180,0.00063437,60910.0,60909.0,1.54777804]
[1723287154385,0.00063437,60910.0,60909.0,1.69963702]
[1723287154588,0.00063437,60910.0,60909.0,1.59693654]
[1723287154825,0.00063437,60910.0,60909.0,1.69965494]
[1723287155118,0.00063437,60910.0,60909.0,1.54785987]
[1723287155318,0.00063437,60910.0,60909.0,1.59701837]
[1723287155520,0.00063437,60910.0,60909.0,1.54785987]
[1723287155679,0.00063437,60910.0,60909.0,1.65057826]
[1723287155879,0.00063437,60910.0,60909.0,1.65052473]
[1723287156505,0.00063437,60910.0,60909.0,1.724256]
[1723287157018,0.00063437,60910.0,60909.0,1.82603525]
[1723287157221,0.00063437,60910.0,60909.0,1.72771825]
[1723287157721,0.00063437,60910.0,60909.0,1.8506145]
[1723287157947,0.00063437,60910.0,60909.0,1.72771825]
[1723287158147,0.00063437,60910.0,60909.0,1.72792182]
[1723287158549,0.00063437,60910.0,60909.0,1.23488537]
[1723287158676,0.00063437,60910.0,60909.0,1.72792]
[1723287159098,0.00063437,60910.0,60909.0,1.80892]
[1723287159707,0.00063437,60910.0,60909.0,1.67260979]
[1723287159907,0.00063437,60910.0,60909.0,1.80900041]
[1723287160107,0.00063437,60910.0,60909.0,1.97317941]
[1723287160447,0.00063437,60910.0,60909.0,1.99317941]
[1723287160683,0.00063437,60910.0,60909.0,2.14086343]
[1723287160884,0.00063437,60910.0,60909.0,1.99317941]
[1723287161294,0.00063437,60910.0,60909.0,1.92502509]
[1723287161470,0.00063437,60910.0,60909.0,1.99317728]
[1723287161705,0.00063437,60910.0,60909.0,2.14086793]
[1723287161905,0.00063437,60910.0,60909.0,1.90232393]
[1723287162114,0.00063437,60910.0,60909.0,2.14085955]
[1723287162579,0.00063437,60910.0,60909.0,1.97047696]
[1723287162788,0.00063437,60910.0,60909.0,2.14143789]
[1723287163756,0.00063437,60910.0,60909.0,1.99374724]
[1723287163963,0.00063437,60910.0,60909.0,1.97974724]
[1723287164168,0.00063437,60910.0,60909.0,2.11344145]
[1723287164365,0.00063437,60910.0,60909.0,2.12744145]
[1723287164585,0.00063437,60910.0,60909.0,2.14144145]
[1723287164918,0.00063437,60910.0,60909.0,1.97974691]
[1723287165129,0.00063437,60910.0,60909.0,1.82305938]
[1723287165293,0.00063437,60910.0,60909.0,1.9934447]
[1723287165646,0.00063437,60910.0,60909.0,2.12713924]
[1723287165791,0.00063437,60910.0,60909.0,2.11313924]
[1723287166001,0.00063437,60910.0,60909.0,2.11313807]
[1723287167020,0.00063437,60910.0,60909.0,2.12713807]
[1723287167222,0.00063437,60910.0,60909.0,2.14113807]
[1723287167383,0.00063437,60910.0,60909.0,2.12713807]
[1723287167582,0.00063437,60910.0,60909.0,2.11313807]
[1723287167799,0.00063437,60910.0,60909.0,2.12713807]
[1723287168005,0.00063437,60910.0,60909.0,2.14113807]
[1723287168708,0.00063437,60910.0,60909.0,2.12715585]
[1723287169669,0.00063437,60910.0,60909.0,1.95710558]
[1723287169923,0.00063437,60910.0,60909.0,2.12748939]
[1723287170143,0.00063437,60910.0,60909.0,1.91160803]
[1723287170336,0.00063437,60910.0,60909.0,1.97653327]
[1723287170691,0.00063437,60910.0,60909.0,2.00453265]
[1723287171097,0.00063437,60910.0,60909.0,1.99467226]
[1723287171276,0.00063437,60910.0,60909.0,1.99457891]
[1723287171629,0.00063437,60910.0,60909.0,2.00857891]
[1723287172636,0.00063437,60910.0,60909.0,2.00857887]
[1723287173295,0.00063437,60910.0,60909.0,2.00864083]
[1723287173640,0.00063437,60910.0,60909.0,2.00864082]
[1723287175083,0.00063437,60910.0,60909.0,1.41881699]
[1723287175287,0.00063437,60910.0,60909.0,1.98052831]
[1723287175502,0.00063437,60910.0,60909.0,1.99452831]
[1723287175916,0.00063437,60910.0,60909.0,1.99452832]
[1723287177485,0.00063437,60910.0,60909.0,1.99459048]
[1723287178462,0.00063437,60910.0,60909.0,1.98059048]
[1723287178985,0.00063437,60910.0,60909.0,1.99459048]
[1723287179187,0.00063437,60910.0,60909.0,1.98059048]
[1723287179422,8.062e-05,60910.0,60909.0,1.98059048]
[1723287180123,8.062e-05,60910.0,60909.0,1.96659048]
[1723287180291,8.062e-05,60910.0,60909.0,1.98058487]
[1723287181090,8.062e-05,60910.0,60909.0,1.99458487]
[1723287181303,8.062e-05,60910.0,60909.0,1.99463479]
[1723287181799,8.062e-05,60910.0,60909.0,2.00449461]
[1723287182543,8.062e-05,60910.0,60909.0,2.15890479]
[1723287182856,8.062e-05,60910.0,60909.0,1.99472252]
[1723287183638,0.00077158,60914.0,60913.0,0.032]
[1723287183849,0.00077158,60914.0,60913.0,1.5978573]
[1723287184030,0.00077158,60914.0,60913.0,1.70704294]
[1723287185022,0.00077158,60914.0,60913.0,1.72104294]
[1723287185193,0.00077158,60914.0,60913.0,1.73504294]
[1723287185343,0.00077158,60914.0,60913.0,1.83776133]
[1723287187108,0.00077158,60914.0,60913.0,1.83817139]
[1723287187693,0.00077158,60914.0,60913.0,1.82417139]
[1723287188206,0.00077158,60914.0,60913.0,1.83812178]
[1723287188790,0.00077158,60914.0,60913.0,1.82412178]
[1723287189908,0.00077158,60914.0,60913.0,1.83812178]
[1723287190410,0.00077158,60914.0,60913.0,1.83812122]
[1723287192864,0.00077158,60914.0,60913.0,1.83832328]
[1723287193067,0.00077158,60914.0,60913.0,1.59979741]
[1723287193267,0.00077158,60914.0,60913.0,1.66794761]
[1723287193470,0.00077158,60914.0,60913.0,1.83832307]
[1723287193673,0.00077158,60914.0,60913.0,1.83834834]
[1723287195643,0.00077158,60914.0,60913.0,1.83835018]
[1723287196206,0.00077158,60914.0,60913.0,1.82435018]
[1723287196375,0.00077158,60914.0,60913.0,1.83835018]
[1723287196875,0.00077158,60914.0,60913.0,1.82435018]
[1723287197114,0.00077158,60914.0,60913.0,1.81035018]
[1723287197319,0.00077158,60914.0,60913.0,1.83835018]
[1723287197515,0.00077158,60914.0,60913.0,1.82435018]
[1723287197728,0.00077158,60914.0,60913.0,1.81035018]
[1723287197871,0.00077158,60914.0,60913.0,1.82435018]
[1723287198077,0.00077158,60914.0,60913.0,1.83835018]
[1723287199208,0.00077158,60914.0,60913.0,1.44615041]
[1723287199463,0.00077158,60914.0,60913.0,2.00878274]
[1723287199683,0.00077158,60914.0,60913.0,1.43215041]
[1723287199897,0.00077158,60914.0,60913.0,2.00879727]
[1723287200168,0.00077158,60914.0,60913.0,1.99479727]
[1723287200931,0.00077158,60914.0,60913.0,2.00879727]
[1723287201166,0.00077158,60914.0,60913.0,1.99479727]
[1723287201559,0.00077158,60914.0,60913.0,1.99486995]
[1723287201944,0.00077158,60914.0,60913.0,1.43215041]
[1723287202142,0.00077158,60914.0,60913.0,2.06231552]
[1723287202143,0.08327158,60914.0,60913.0,2.06231552]
[1723287202365,0.14477158,60914.0,60913.0,2.14261552]
[1723287202546,0.14477158,60914.0,60913.0,2.00886994]
[1723287202971,0.14477158,60914.0,60913.0,1.44615041]
[1723287203136,0.14477158,60914.0,60913.0,2.15591154]
[1723287203337,0.14477158,60914.0,60913.0,2.00814437]
[1723287203826,0.14477158,60914.0,60913.0,2.00814398]
[1723287204052,0.14477158,60914.0,60913.0,1.44615041]
[1723287204257,0.14477158,60914.0,60913.0,2.00814398]
[1723287204461,0.14477158,60914.0,60913.0,1.68467604]
[1723287204667,0.14477158,60914.0,60913.0,2.00816423]
[1723287204791,0.00077158,60914.0,60913.0,2.00816424]
[1723287205379,0.00077158,60914.0,60913.0,2.00824787]
[1723287206225,0.00077158,60914.0,60913.0,1.94009769]
[1723287206425,0.00077158,60914.0,60913.0,2.00824787]
[1723287207047,0.00077158,60914.0,60913.0,1.44615041]
[1723287207273,0.00077158,60914.0,60913.0,1.83786935]
[1723287208780,0.00077158,60914.0,60913.0,1.84772904]
[1723287209391,0.00077158,60914.0,60913.0,1.83786935]
[1723287210281,0.00077158,60914.0,60913.0,1.67735359]
[1723287210511,0.00077158,60914.0,60913.0,1.8477695]
[1723287211181,0.00077158,60914.0,60913.0,1.67739424]
[1723287211411,0.00077158,60914.0,60913.0,1.8477695]
[1723287212663,0.00077158,60914.0,60913.0,1.84777239]
[1723287212861,0.00077158,60914.0,60913.0,1.67739713]
[1723287213062,0.00077158,60914.0,60913.0,1.84777239]
[1723287213260,0.00077158,60914.0,60913.0,1.76976262]
[1723287213482,0.00077158,60914.0,60913.0,1.8477724]
[1723287213655,0.00077158,60914.0,60913.0,1.52416]
[1723287213861,0.00077158,60914.0,60913.0,1.8477773]
[1723287214070,0.00077158,60914.0,60913.0,1.52416]
[1723287214382,0.00077158,60914.0,60913.0,1.8477773]
[1723287214585,0.00077158,60914.0,60913.0,1.84779454]
[1723287215637,0.00077158,60914.0,60913.0,1.8477956]
[1723287216044,0.00077158,60914.0,60913.0,1.67742033]
[1723287216257,0.00077158,60914.0,60913.0,1.8477956]
[1723287216742,0.00077158,60914.0,60913.0,1.84782174]
[1723287218577,0.00077158,60914.0,60913.0,1.27577495]
[1723287218780,0.00077158,60914.0,60913.0,1.67734589]
[1723287218979,0.00077158,60914.0,60913.0,1.84773589]
[1723287219519,0.00077158,60914.0,60913.0,1.27577495]
[1723287219696,0.00077158,60914.0,60913.0,1.8477359]
[1723287223391,0.00077158,60914.0,60913.0,1.59935085]
[1723287223531,0.00077158,60914.0,60913.0,1.83787622]
[1723287225178,0.00077158,60914.0,60913.0,1.27577495]
[1723287225476,0.07587158,60914.0,60913.0,1.83783964]
[1723287226548,0.00077158,60914.0,60913.0,1.83783964]
[1723287227017,0.00077158,60914.0,60913.0,1.98333964]
[1723287227215,0.00077158,60914.0,60913.0,1.99319932]
[1723287227438,0.00077158,60914.0,60913.0,1.99338332]
[1723287227845,0.00077158,60914.0,60913.0,1.99338217]
[1723287228908,0.00077158,60914.0,60913.0,1.91298217]
[1723287229125,0.00077158,60914.0,60913.0,1.67751005]
[1723287229323,0.00077158,60914.0,60913.0,1.84783717]
[1723287229746,0.00077158,60914.0,60913.0,1.83383717]
[1723287229924,0.00077158,60914.0,60913.0,1.81983717]
[1723287230141,0.00077158,60914.0,60913.0,1.84783717]
[1723287230547,0.00077158,60914.0,60913.0,1.83383717]
[1723287230763,0.00077158,60914.0,60913.0,1.84783717]
[1723287231129,0.00077158,60914.0,60913.0,1.44614701]
[1723287231336,0.00077158,60914.0,60913.0,1.83382765]
[1723287231668,0.00077158,60914.0,60913.0,1.84782765]
[1723287232030,0.00077158,60914.0,60913.0,1.83384944]
[1723287232210,0.00077158,60914.0,60913.0,1.81984944]
[1723287232428,0.00077158,60914.0,60913.0,1.83384944]
[1723287232630,0.00077158,60914.0,60913.0,1.81984944]
[1723287233077,0.00077158,60914.0,60913.0,1.84784944]
[1723287235790,0.00077158,60914.0,60913.0,1.67781722]
[1723287235955,0.00077158,60914.0,60913.0,1.83418928]
[1723287236561,0.00077158,60914.0,60913.0,1.84818928]
[1723287236977,0.00077158,60914.0,60913.0,1.83418928]
[1723287237182,0.00077158,60914.0,60913.0,1.84818928]
[1723287237686,0.00077158,60914.0,60913.0,1.83418928]
[1723287237953,0.00077158,60914.0,60913.0,1.84818928]
[1723287238788,0.00052324,60914.0,60913.0,1.84818928]
[1723287238956,0.00052324,60914.0,60913.0,1.82018928]
[1723287239263,0.00052324,60914.0,60913.0,1.83418928]
[1723287239833,0.00052324,60914.0,60913.0,1.27577495]
[1723287240035,0.00052324,60914.0,60913.0,1.848394]
[1723287240236,0.00052324,60914.0,60913.0,1.27577495]
[1723287240515,0.00052324,60914.0,60913.0,1.84839401]
[1723287240864,0.00052324,60914.0,60913.0,1.83439401]
[1723287241245,0.00052324,60914.0,60913.0,1.84839401]
[1723287241676,0.000931,60929.0,60913.0,1.84839401]
[1723287241677,0.000931,60929.0,60928.0,0.574448]
[1723287241837,0.000931,60929.0,60928.0,1.47625004]
[1723287242040,0.000931,60929.0,60928.0,1.48538017]
[1723287242239,0.145631,60929.0,60928.0,1.41723135]
[1723287242446,0.145631,60929.0,60928.0,1.24086156]
[1723287242642,0.145631,60929.0,60928.0,1.41121941]
[1723287243172,0.145631,60929.0,60928.0,1.48612801]
[1723287243555,0.145631,60929.0,60928.0,1.48611815]
[1723287244112,0.145631,60929.0,60928.0,1.34407721]
[1723287244459,0.145631,60929.0,60928.0,1.22297989]
[1723287244652,0.145631,60929.0,60928.0,1.22697989]
[1723287246075,0.145631,60929.0,60928.0,1.2366561]
[1723287246283,0.145631,60929.0,60928.0,0.75815123]
[1723287246579,0.145631,60929.0,60928.0,0.82677502]
[1723287247559,0.145631,60929.0,60928.0,0.82577502]
[1723287247756,0.145631,60929.0,60928.0,0.82177502]
[1723287248180,0.145631,60929.0,60928.0,0.82577502]
[1723287248540,0.145631,60929.0,60928.0,0.82143375]
[1723287248972,0.145631,60929.0,60928.0,0.82543375]
[1723287250003,0.145631,60929.0,60928.0,0.63904834]
[1723287250201,0.145631,60929.0,60928.0,0.63804834]
[1723287250342,0.145631,60929.0,60928.0,0.63904834]
[1723287250751,0.145631,60929.0,60928.0,0.63404834]
[1723287250952,0.145631,60929.0,60928.0,0.63404973]
[1723287251152,0.145631,60929.0,60928.0,0.63704973]
[1723287252142,0.145631,60929.0,60928.0,0.50075013]
[1723287252290,0.145631,60929.0,60928.0,0.6370478]
[1723287254389,0.145631,60929.0,60928.0,0.6340478]
[1723287254508,0.145631,60929.0,60928.0,0.49775013]
[1723287254711,0.145631,60929.0,60928.0,0.63504771]
[1723287254917,0.145631,60929.0,60928.0,0.82248253]
[1723287255616,0.145631,60929.0,60928.0,0.82148253]
[1723287255819,0.145631,60929.0,60928.0,0.82248253]
[1723287257130,0.145631,60929.0,60928.0,0.82148253]
[1723287257471,0.145631,60929.0,60928.0,0.82248253]
[1723287257677,0.145631,60929.0,60928.0,0.87174284]
[1723287257831,0.145631,60929.0,60928.0,0.82148253]
[1723287258031,0.145631,60929.0,60928.0,0.83150151]